[Event "GER-ch Youth U14w 2019"]
[Site "Willingen"]
[Date "2019.06.09"]
[Round "1.1"]
[White "Reuter, Elisa"]
[Black "Kalina, Lena"]
[Result "1/2-1/2"]
[ECO "B35"]
[WhiteElo "1923"]
[BlackElo "1687"]
[Annotator "NA"]
[PlyCount "67"]
[EventDate "2019.06.07"]
[EventType "swiss"]
[EventRounds "9"]
[EventCountry "GER"]
[SourceTitle "playchess.com"]
[Source "ChessBase"]
[SourceQuality "1"]
[TimeControl "40/5400+30:1800+30"]

1. e4 {[%emt 0:00:00]} c5 {[%emt 0:00:00]} 2. Nf3 {[%emt 0:00:00]} g6 {[%emt 0:00:00]} 3. d4 {[%emt 0:00:00]} cxd4 {[%emt 0:00:00]} 4. Nxd4 {[%emt 0:00:00]} Nc6 {[%emt 0:00:11]} 5. Be3 {[%emt 0:00:00]} Bg7 {[%emt 0:00:23]} 6. Nc3 {[%emt 0:00:00]} Nf6 {[%emt 0:00:18]} 7. Bc4 {[%emt 0:00:00]} O-O {[%emt 0:00:07]} 8. Bb3 {[%emt 0:00:00]} Qa5 {[%emt 0:00:39]} 9. O-O {[%emt 0:00:09]} d6 {[%emt 0:00:52]} 10. h3 {[%emt 0:00:07]} Bd7 {[%emt 0:00:13]} 11. f4 {[%emt 0:01:14]} Nxd4 {[%emt 0:01:37]} 12. Bxd4 {[%emt 0:00:09]} Bc6 {[%emt 0:00:43]} 13. Nd5 {[%emt 0:05:47]} Rae8 {[%emt 0:04:20]} 14. Qd3 {[%emt 0:06:18]} Nxd5 {[%emt 0:19:46]} 15. exd5 {[%emt 0:00:13]} Bb5 {[%emt 0:01:01]} 16. c4 {[%emt 0:01:11]} Bd7 {[%emt 0:00:34]} 17. Bxg7 {[%emt 0:02:34]} Kxg7 {[%emt 0:00:10]} 18. Qd4+ {[%emt 0:00:42]} Kg8 {[%emt 0:01:54]} 19. Rae1 {[%emt 0:01:31]} Qc5 {[%emt 0:03:17]} 20. Qxc5 {[%emt 0:01:47]} dxc5 {[%emt 0:00:18]} 21. Bc2 {[%emt 0:07:11]} e6 {[%emt 0:04:59]} 22. Be4 {[%emt 0:02:25]} exd5 {[%emt 0:09:30]} 23. Bxd5 {[%emt 0:00:40]} b6 {[%emt 0:02:55]} 24. Kf2 {[%emt 0:07:51]} Be6 {[%emt 0:06:05]} 25. Bxe6 {[%emt 0:15:52]} Rxe6 {[%emt 0:02:01]} 26. Rxe6 {[%emt 0:00:39]} fxe6 {[%emt 0:00:18]} 27. Ke2 {[%emt 0:00:08]} e5 {[%emt 0:11:37]} 28. Ke3 {[%emt 0:03:05]} Kg7 {[%emt 0:07:23]} 29. Rf3 {[%emt 0:02:05]} Rxf4 {[%emt 0:04:40]} 30. Rxf4 {[%emt 0:00:06]} exf4+ {[%emt 0:00:05]} 31. Kxf4 {[%emt 0:00:04]} Kf6 {[%emt 0:00:12]} 32. g4 {[%emt 0:00:18]} g5+ {[%emt 0:01:30]} 33. Ke4 {[%emt 0:00:13]} Ke6 {[%emt 0:00:55]} 34. a3 {[%emt 0:01:58]} 1/2-1/2

[Event "GER-ch Youth U14w 2019"]
[Site "Willingen"]
[Date "2019.06.09"]
[Round "1.2"]
[White "Bildat, Emilia"]
[Black "Bashylina, Luisa"]
[Result "0-1"]
[ECO "A20"]
[WhiteElo "1649"]
[BlackElo "1886"]
[Annotator "NA"]
[PlyCount "40"]
[EventDate "2019.06.07"]
[EventType "swiss"]
[EventRounds "9"]
[EventCountry "GER"]
[SourceTitle "playchess.com"]
[Source "ChessBase"]
[SourceQuality "1"]
[TimeControl "40/5400+30:1800+30"]

1. c4 {[%emt 0:00:00]} e5 {[%emt 0:00:00]} 2. g3 {[%emt 0:00:00]} Nf6 {[%emt 0:00:22]} 3. Bg2 {[%emt 0:00:03]} d5 {[%emt 0:00:05]} 4. cxd5 {[%emt 0:00:17]} Nxd5 {[%emt 0:00:06]} 5. Nc3 {[%emt 0:00:20]} Nb6 {[%emt 0:00:21]} 6. d3 {[%emt 0:01:09]} Nc6 {[%emt 0:00:57]} 7. Nf3 {[%emt 0:02:23]} Be7 {[%emt 0:02:21]} 8. O-O {[%emt 0:01:04]} Be6 {[%emt 0:03:25]} 9. Be3 {[%emt 0:05:03]} f5 {[%emt 0:07:03]} 10. Na4 {[%emt 0:03:08]} Nd7 {[%emt 0:25:06]} 11. Rc1 {[%emt 0:06:21]} O-O {[%emt 0:03:31]} 12. a3 {[%emt 0:06:36]} a6 {[%emt 0:13:59]} 13. Nc5 {[%emt 0:05:02]} Nxc5 {[%emt 0:00:26]} 14. Bxc5 {[%emt 0:02:29]} Bd6 {[%emt 0:02:20]} 15. d4 {[%emt 0:05:38]} Bxc5 {[%emt 0:01:32]} 16. dxc5 {[%emt 0:02:44]} Qe7 {[%emt 0:02:29]} 17. Qa4 {[%emt 0:02:08]} Rad8 {[%emt 0:02:24]} 18. b4 {[%emt 0:03:51]} e4 {[%emt 0:01:08]} 19. Ne1 {[%emt 0:00:46]} Nd4 {[%emt 0:01:51]} 20. Kh1 {[%emt 0:01:22]} Bb3 {[%emt 0:00:26] normal} 0-1

[Event "GER-ch Youth U14w 2019"]
[Site "Willingen"]
[Date "2019.06.09"]
[Round "1.3"]
[White "Peglau, Mirjam"]
[Black "Adelhardt, Lisa"]
[Result "1/2-1/2"]
[ECO "E00"]
[WhiteElo "1746"]
[BlackElo "1293"]
[Annotator "NA"]
[PlyCount "115"]
[EventDate "2019.06.07"]
[EventType "swiss"]
[EventRounds "9"]
[EventCountry "GER"]
[SourceTitle "playchess.com"]
[Source "ChessBase"]
[SourceQuality "1"]
[TimeControl "40/5400+30:1800+30"]

1. d4 {[%emt 0:00:00]} Nf6 {[%emt 0:00:00]} 2. c4 {[%emt 0:00:00]} e6 {[%emt 0:00:08]} 3. Bf4 {[%emt 0:01:48]} Bb4+ {[%emt 0:03:11]} 4. Nc3 {[%emt 0:00:38]} d5 {[%emt 0:03:07]} 5. c5 {[%emt 0:04:44]} Ne4 {[%emt 0:04:25]} 6. Rc1 {[%emt 0:01:29]} Nc6 {[%emt 0:02:35]} 7. Nf3 {[%emt 0:01:46]} Bd7 {[%emt 0:10:30]} 8. e3 {[%emt 0:01:23]} O-O {[%emt 0:06:58]} 9. Bd3 {[%emt 0:01:23]} Nf6 {[%emt 0:06:27]} 10. O-O {[%emt 0:00:28]} Bxc3 {[%emt 0:02:35]} 11. Rxc3 {[%emt 0:00:29]} Ne7 {[%emt 0:01:09]} 12. b4 {[%emt 0:00:53]} a6 {[%emt 0:04:05]} 13. Qc2 {[%emt 0:04:46]} Ng6 {[%emt 0:03:06]} 14. Bg5 {[%emt 0:01:34]} Qe8 {[%emt 0:03:46]} 15. Ne5 {[%emt 0:07:29]} Ba4 {[%emt 0:07:54]} 16. Qb1 {[%emt 0:03:01]} Bb5 {[%emt 0:00:29]} 17. Bxf6 {[%emt 0:04:01]} gxf6 {[%emt 0:00:47]} 18. Ng4 {[%emt 0:01:30]} Kg7 19. f4 {[%emt 0:02:17]} Bxd3 {[%emt 0:04:55]} 20. Rxd3 {[%emt 0:00:58]} f5 {[%emt 0:02:32]} 21. Ne5 {[%emt 0:00:16]} Nxe5 {[%emt 0:01:13]} 22. fxe5 {[%emt 0:00:20]} Rg8 {[%emt 0:02:16]} 23. Qe1 {[%emt 0:00:21]} Qe7 {[%emt 0:03:30]} 24. Rf4 {[%emt 0:03:09]} Qg5 {[%emt 0:03:45]} 25. Qh4 {[%emt 0:02:23]} Qxh4 {[%emt 0:02:34]} 26. Rxh4 {[%emt 0:00:02]} h6 {[%emt 0:01:48]} 27. Rf4 {[%emt 0:01:20]} c6 {[%emt 0:02:16]} 28. Rf2 {[%emt 0:00:17]} Kh7 {[%emt 0:04:32]} 29. Rb2 {[%emt 0:01:18]} Rgc8 {[%emt 0:01:33]} 30. Rdb3 {[%emt 0:00:49]} Rcb8 {[%emt 0:02:48]} 31. a4 {[%emt 0:01:57]} Rc8 {[%emt 0:02:57]} 32. b5 {[%emt 0:00:20]} axb5 {[%emt 0:01:29]} 33. axb5 {[%emt 0:00:02]} Rc7 {[%emt 0:00:57]} 34. bxc6 {[%emt 0:00:46]} bxc6 {[%emt 0:00:22]} 35. Kf2 {[%emt 0:01:43]} Kg7 {[%emt 0:02:36]} 36. Rb7 {[%emt 0:00:15]} Rac8 {[%emt 0:01:00]} 37. Rxc7 {[%emt 0:00:02]} Rxc7 {[%emt 0:00:06]} 38. Rb6 {[%emt 0:00:15]} Kg6 {[%emt 0:01:27]} 39. Kf3 {[%emt 0:01:22]} Kg7 {[%emt 0:01:20]} 40. Kf4 {[%emt 0:00:29]} Kg6 {[%emt 0:00:29]} 41. Ra6 {[%emt 0:30:41]} Kg7 {[%emt 0:31:39]} 42. h4 {[%emt 0:03:01]} Kg6 {[%emt 0:01:09]} 43. g4 {[%emt 0:04:25]} fxg4 {[%emt 0:00:00]} 44. Kxg4 {[%emt 0:00:00]} Kh7 {[%emt 0:00:00]} 45. h5 {[%emt 0:00:00]} Kg7 {[%emt 0:00:00]} 46. Kf3 {[%emt 0:00:00]} f6 {[%emt 0:00:00]} 47. Ke2 {[%emt 0:00:00]} fxe5 {[%emt 0:00:00]} 48. dxe5 {[%emt 0:00:00]} Kf7 {[%emt 0:00:00]} 49. Ra8 {[%emt 0:00:00]} Kg7 {[%emt 0:00:00]} 50. Kd3 {[%emt 0:00:00]} Rf7 {[%emt 0:00:00]} 51. Rc8 {[%emt 0:00:00]} Rf5 {[%emt 0:00:00]} 52. Rc7+ {[%emt 0:00:00]} Kf8 {[%emt 0:00:00]} 53. Kd4 {[%emt 0:00:00]} Rxh5 {[%emt 0:00:00]} 54. Rxc6 {[%emt 0:00:00]} Rh4+ {[%emt 0:00:00]} 55. Kd3 {[%emt 0:00:00]} Ke7 {[%emt 0:00:00]} 56. Rd6 {[%emt 0:00:00]} Rc4 {[%emt 0:00:00]} 57. c6 {[%emt 0:00:00]} Rc1 {[%emt 0:00:00]} 58. Rd7+ {[%emt 0:00:00] normal} 1/2-1/2

[Event "GER-ch Youth U14w 2019"]
[Site "Willingen"]
[Date "2019.06.09"]
[Round "1.4"]
[White "Orlova, Alicia"]
[Black "Heutling, Elina"]
[Result "0-1"]
[ECO "C55"]
[WhiteElo "1490"]
[BlackElo "1712"]
[Annotator "NA"]
[PlyCount "84"]
[EventDate "2019.06.07"]
[EventType "swiss"]
[EventRounds "9"]
[EventCountry "GER"]
[SourceTitle "playchess.com"]
[Source "ChessBase"]
[SourceQuality "1"]
[TimeControl "40/5400+30:1800+30"]

1. e4 {[%emt 0:00:00]} e5 {[%emt 0:00:00]} 2. Nf3 {[%emt 0:00:00]} Nc6 {[%emt 0:00:00]} 3. Bc4 {[%emt 0:00:17]} Nf6 {[%emt 0:00:00]} 4. d3 {[%emt 0:00:27]} Be7 {[%emt 0:00:23]} 5. Nc3 {[%emt 0:05:45]} O-O {[%emt 0:00:46]} 6. a3 {[%emt 0:01:00]} d6 {[%emt 0:01:40]} 7. Be3 {[%emt 0:03:11]} Be6 {[%emt 0:11:05]} 8. b4 {[%emt 0:05:33]} a6 {[%emt 0:05:06]} 9. Nd5 {[%emt 0:04:50]} Qd7 {[%emt 0:04:34]} 10. Qd2 {[%emt 0:06:45]} Bxd5 {[%emt 0:07:52]} 11. Bxd5 {[%emt 0:02:28]} Nxd5 {[%emt 0:00:56]} 12. exd5 {[%emt 0:00:10]} Nd8 {[%emt 0:00:32]} 13. O-O {[%emt 0:01:32]} c6 {[%emt 0:01:14]} 14. dxc6 {[%emt 0:06:04]} Nxc6 {[%emt 0:03:42]} 15. Ng5 {[%emt 0:02:38]} h6 {[%emt 0:01:23]} 16. Nf3 {[%emt 0:03:36]} f5 {[%emt 0:03:49]} 17. Rfe1 {[%emt 0:08:16]} Bf6 {[%emt 0:09:31]} 18. Rad1 {[%emt 0:00:38]} Qc7 {[%emt 0:01:52]} 19. Qe2 {[%emt 0:01:03]} Rac8 {[%emt 0:07:22]} 20. c4 {[%emt 0:01:10]} b5 {[%emt 0:05:45]} 21. cxb5 {[%emt 0:23:22]} axb5 {[%emt 0:00:39]} 22. Rc1 {[%emt 0:01:58]} f4 {[%emt 0:03:59]} 23. Qa2+ {[%emt 0:02:52]} Kh8 {[%emt 0:03:29]} 24. Bd2 {[%emt 0:00:30]} Qd7 {[%emt 0:01:12]} 25. Bc3 {[%emt 0:02:47]} g5 {[%emt 0:03:36]} 26. Qb2 {[%emt 0:01:52]} g4 {[%emt 0:01:55]} 27. Nd2 {[%emt 0:00:08]} d5 {[%emt 0:02:20]} 28. Nb3 {[%emt 0:04:11]} Qf5 {[%emt 0:05:20]} 29. d4 {[%emt 0:01:26]} e4 {[%emt 0:00:53]} 30. Bd2 {[%emt 0:01:34]} Be7 {[%emt 0:01:24]} 31. Nc5 {[%emt 0:00:27]} h5 {[%emt 0:03:26]} 32. Bc3 {[%emt 0:00:37]} Kh7 {[%emt 0:00:51]} 33. a4 {[%emt 0:02:05]} Na7 {[%emt 0:04:22]} 34. a5 {[%emt 0:00:25]} h4 {[%emt 0:00:58]} 35. Rc2 {[%emt 0:04:13]} f3 {[%emt 0:02:21]} 36. a6 {[%emt 0:01:24]} fxg2 {[%emt 0:00:35]} 37. Qa2 {[%emt 0:00:35]} Bd6 {[%emt 0:00:45]} 38. f4 {[%emt 0:01:23]} gxf3 {[%emt 0:00:27]} 39. Nb7 {[%emt 0:00:58]} Bb8 {[%emt 0:01:24]} 40. Rxg2 {[%emt 0:00:58]} fxg2 {[%emt 0:00:15]} 41. Qd2 {[%emt 0:01:56]} Qf1+ {[%emt 0:00:13]} 42. Rxf1 {[%emt 0:00:22]} gxf1=Q# {[%emt 0:00:08] normal} 0-1

[Event "GER-ch Youth U14w 2019"]
[Site "Willingen"]
[Date "2019.06.09"]
[Round "1.5"]
[White "Yue, Qizhou"]
[Black "Buchholz, Maja"]
[Result "1-0"]
[ECO "C11"]
[WhiteElo "1840"]
[BlackElo "1657"]
[Annotator "NA"]
[PlyCount "69"]
[EventDate "2019.06.07"]
[EventType "swiss"]
[EventRounds "9"]
[EventCountry "GER"]
[SourceTitle "playchess.com"]
[Source "ChessBase"]
[SourceQuality "1"]
[TimeControl "40/5400+30:1800+30"]

1. e4 {[%emt 0:00:00]} e6 {[%emt 0:00:00]} 2. d4 {[%emt 0:00:00]} d5 {[%emt 0:00:00]} 3. Nc3 {[%emt 0:00:00]} Nf6 {[%emt 0:00:00]} 4. e5 {[%emt 0:00:04]} Nfd7 {[%emt 0:00:00]} 5. f4 {[%emt 0:01:39]} c5 {[%emt 0:00:00]} 6. Be3 {[%emt 0:01:58]} Nc6 {[%emt 0:00:28]} 7. Nf3 {[%emt 0:01:35]} Be7 {[%emt 0:01:36]} 8. Bd3 {[%emt 0:03:41]} a6 {[%emt 0:02:21]} 9. Bf2 {[%emt 0:20:11]} c4 {[%emt 0:04:49]} 10. Be2 {[%emt 0:00:54]} b5 {[%emt 0:01:23]} 11. g4 {[%emt 0:05:13]} Bb7 {[%emt 0:04:34]} 12. Bf1 {[%emt 0:08:18]} f6 {[%emt 0:05:04]} 13. exf6 {[%emt 0:04:22]} Nxf6 {[%emt 0:01:23]} 14. Ng5 {[%emt 0:01:42]} Qc8 {[%emt 0:01:35]} 15. Qe2 {[%emt 0:01:36]} Nd8 {[%emt 0:01:21]} 16. Bh3 {[%emt 0:06:47]} h6 {[%emt 0:04:51]} 17. Nf3 {[%emt 0:00:41]} Bd6 {[%emt 0:02:07]} 18. Ne5 {[%emt 0:02:34]} Bxe5 {[%emt 0:05:52]} 19. Qxe5 {[%emt 0:01:38]} O-O {[%emt 0:02:27]} 20. g5 {[%emt 0:03:58]} hxg5 {[%emt 0:01:00]} 21. Qxg5 {[%emt 0:01:07]} Nf7 {[%emt 0:02:58]} 22. Qg6 {[%emt 0:01:05]} Nd6 {[%emt 0:01:01]} 23. Rg1 {[%emt 0:00:55]} Rf7 {[%emt 0:01:22]} 24. Bh4 {[%emt 0:01:23]} Qd7 {[%emt 0:02:41]} 25. Bxf6 {[%emt 0:00:54]} Rxf6 {[%emt 0:00:35]} 26. Qxf6 {[%emt 0:00:27]} Re8 {[%emt 0:03:00]} 27. O-O-O {[%emt 0:03:47]} Kh8 {[%emt 0:00:54]} 28. Qh4+ {[%emt 0:00:36]} Kg8 {[%emt 0:00:15]} 29. Rde1 {[%emt 0:02:12]} b4 {[%emt 0:01:00]} 30. Ne2 {[%emt 0:01:10]} Qa4 {[%emt 0:01:40]} 31. Qg5 {[%emt 0:01:10]} Qd7 {[%emt 0:00:38]} 32. Ng3 {[%emt 0:00:40]} Re7 {[%emt 0:03:14]} 33. f5 {[%emt 0:04:06]} Nf7 {[%emt 0:02:04]} 34. fxe6 {[%emt 0:01:16]} Nxg5 {[%emt 0:02:21]} 35. exd7 {[%emt 0:00:10] normal} 1-0

[Event "GER-ch Youth U14w 2019"]
[Site "Willingen"]
[Date "2019.06.09"]
[Round "1.6"]
[White "Gerber, Anna Sophie"]
[Black "Liu, Sijia Anna"]
[Result "0-1"]
[ECO "E67"]
[WhiteElo "1473"]
[BlackElo "1705"]
[Annotator "NA"]
[PlyCount "121"]
[EventDate "2019.06.07"]
[EventType "swiss"]
[EventRounds "9"]
[EventCountry "GER"]
[SourceTitle "playchess.com"]
[Source "ChessBase"]
[SourceQuality "1"]
[TimeControl "40/5400+30:1800+30"]

1. d4 {[%emt 0:00:00]} Nf6 {[%emt 0:00:00]} 2. Nf3 {[%emt 0:00:00]} g6 {[%emt 0:01:02]} 3. c4 {[%emt 0:00:19]} Bg7 {[%emt 0:00:32]} 4. Nc3 {[%emt 0:00:25]} O-O {[%emt 0:00:42]} 5. g3 {[%emt 0:00:41]} d6 {[%emt 0:03:20]} 6. Bg2 {[%emt 0:00:13]} Nbd7 {[%emt 0:00:58]} 7. O-O {[%emt 0:00:29]} c5 {[%emt 0:02:37]} 8. e4 {[%emt 0:03:10]} Rb8 {[%emt 0:08:18]} 9. b3 {[%emt 0:03:08]} a6 {[%emt 0:01:41]} 10. a4 {[%emt 0:02:21]} b6 {[%emt 0:05:47]} 11. Bb2 {[%emt 0:05:11]} Bb7 {[%emt 0:03:09]} 12. Qc2 {[%emt 0:04:28]} cxd4 {[%emt 0:11:17]} 13. Nxd4 {[%emt 0:00:22]} Rc8 {[%emt 0:03:03]} 14. Rad1 {[%emt 0:03:47]} Qc7 {[%emt 0:06:53]} 15. Rfe1 {[%emt 0:05:12]} Rfe8 {[%emt 0:05:37]} 16. f3 {[%emt 0:06:13]} Nc5 {[%emt 0:03:16]} 17. Nde2 {[%emt 0:12:00]} Qb8 {[%emt 0:04:05]} 18. Nf4 {[%emt 0:04:38]} Bc6 {[%emt 0:04:36]} 19. b4 {[%emt 0:08:42]} Ncd7 {[%emt 0:01:22]} 20. Qb3 {[%emt 0:05:18]} Ne5 {[%emt 0:04:25]} 21. b5 {[%emt 0:17:19]} Bb7 {[%emt 0:02:50]} 22. Ncd5 {[%emt 0:02:21]} Nfd7 {[%emt 0:03:07]} 23. Bxe5 {[%emt 0:01:12]} Bxe5 {[%emt 0:01:06]} 24. Nd3 {[%emt 0:02:21]} Bg7 {[%emt 0:02:59]} 25. Rb1 {[%emt 0:01:45]} e6 {[%emt 0:05:57]} 26. Ne3 {[%emt 0:01:17]} Qc7 {[%emt 0:01:08]} 27. Rbc1 {[%emt 0:00:58]} Nc5 {[%emt 0:02:39]} 28. Nxc5 {[%emt 0:01:02]} Qxc5 {[%emt 0:00:46]} 29. Kh1 {[%emt 0:00:40]} Bd4 {[%emt 0:01:36]} 30. Qd3 {[%emt 0:01:17]} Bg7 {[%emt 0:03:05]} 31. Red1 {[%emt 0:00:35]} Red8 {[%emt 0:00:36]} 32. Qd2 {[%emt 0:01:28]} Qa3 {[%emt 0:02:08]} 33. bxa6 {[%emt 0:02:06]} Bxa6 {[%emt 0:00:10]} 34. Rb1 {[%emt 0:00:45]} Rc6 {[%emt 0:00:47]} 35. Qf2 {[%emt 0:01:51]} Qxa4 {[%emt 0:00:58]} 36. Nf1 {[%emt 0:00:48]} Bxc4 {[%emt 0:01:14]} 37. f4 {[%emt 0:00:54]} d5 {[%emt 0:01:00]} 38. exd5 {[%emt 0:00:54]} Bxd5 {[%emt 0:01:05]} 39. Bxd5 {[%emt 0:00:55]} Rxd5 {[%emt 0:01:31]} 40. Qe2 {[%emt 0:01:59]} Rxd1 {[%emt 0:01:19]} 41. Rxd1 {[%emt 0:30:19]} h6 {[%emt 0:02:03]} 42. Ne3 {[%emt 0:00:00]} Qe4+ {[%emt 0:01:16]} 43. Qg2 {[%emt 0:00:00]} Qxg2+ {[%emt 0:02:38]} 44. Kxg2 {[%emt 0:00:00]} Kf8 {[%emt 0:02:40]} 45. Rd7 {[%emt 0:00:00]} Ke8 {[%emt 0:00:41]} 46. Rb7 {[%emt 0:00:00]} h5 {[%emt 0:01:29]} 47. Kf3 {[%emt 0:00:00]} Bd4 {[%emt 0:02:13]} 48. Nf1 {[%emt 0:00:00]} Rd6 {[%emt 0:02:55]} 49. Rb8+ {[%emt 0:00:00]} Rd8 {[%emt 0:01:47]} 50. Rb7 {[%emt 0:00:00]} Rd7 {[%emt 0:00:08]} 51. Rb8+ {[%emt 0:00:00]} Ke7 {[%emt 0:00:15]} 52. h3 {[%emt 0:00:00]} Kd6 {[%emt 0:01:29]} 53. Nd2 {[%emt 0:00:00]} Kc7 {[%emt 0:01:36]} 54. Ra8 {[%emt 0:00:00]} b5 {[%emt 0:00:50]} 55. Nb3 {[%emt 0:00:00]} Kc6 {[%emt 0:02:20]} 56. Rc8+ {[%emt 0:00:00]} Kd5 {[%emt 0:01:09]} 57. Rc2 {[%emt 0:00:00]} Bb6 {[%emt 0:01:50]} 58. Rd2+ {[%emt 0:00:00]} Kc6 {[%emt 0:00:20]} 59. Rc2+ {[%emt 0:00:00]} Kb7 {[%emt 0:00:54]} 60. Ke4 {[%emt 0:00:00]} f6 {[%emt 0:01:51]} 61. Rb2 {[%emt 0:00:13] unterminated} 0-1

[Event "GER-ch Youth U14w 2019"]
[Site "Willingen"]
[Date "2019.06.09"]
[Round "1.7"]
[White "Wagner, Margarethe"]
[Black "Albayrak, Nese Pinar"]
[Result "1-0"]
[ECO "C70"]
[WhiteElo "1741"]
[BlackElo "1530"]
[Annotator "NA"]
[PlyCount "109"]
[EventDate "2019.06.07"]
[EventType "swiss"]
[EventRounds "9"]
[EventCountry "GER"]
[SourceTitle "playchess.com"]
[Source "ChessBase"]
[SourceQuality "1"]
[TimeControl "40/5400+30:1800+30"]

1. e4 {[%emt 0:00:00]} e5 {[%emt 0:00:00]} 2. Nf3 {[%emt 0:00:00]} Nc6 {[%emt 0:00:00]} 3. Bb5 {[%emt 0:00:00]} a6 {[%emt 0:00:00]} 4. Ba4 {[%emt 0:00:00]} b5 {[%emt 0:00:35]} 5. Bb3 {[%emt 0:00:11]} Bc5 {[%emt 0:00:22]} 6. O-O {[%emt 0:03:15]} d6 {[%emt 0:01:30]} 7. c3 {[%emt 0:00:52]} Nf6 {[%emt 0:02:00]} 8. Bc2 {[%emt 0:06:21]} Bg4 {[%emt 0:02:05]} 9. h3 {[%emt 0:01:56]} Bh5 {[%emt 0:06:28]} 10. d3 {[%emt 0:03:20]} O-O {[%emt 0:06:54]} 11. Nbd2 {[%emt 0:03:56]} Re8 {[%emt 0:03:34]} 12. Re1 {[%emt 0:02:09]} d5 {[%emt 0:02:59]} 13. Nf1 {[%emt 0:07:23]} dxe4 {[%emt 0:10:48]} 14. dxe4 {[%emt 0:00:19]} Qxd1 {[%emt 0:02:08]} 15. Bxd1 {[%emt 0:00:22]} Rad8 {[%emt 0:00:24]} 16. Ng3 {[%emt 0:05:16]} Bg6 {[%emt 0:01:28]} 17. Bc2 {[%emt 0:05:28]} Rd6 {[%emt 0:11:16]} 18. Nh4 {[%emt 0:09:35]} Nh5 {[%emt 0:11:33]} 19. Ngf5 {[%emt 0:05:36]} Bxf5 {[%emt 0:03:56]} 20. Nxf5 {[%emt 0:00:09]} Rg6 {[%emt 0:04:36]} 21. Kf1 {[%emt 0:03:26]} Nf4 {[%emt 0:02:34]} 22. Nh4 {[%emt 0:05:32]} Rf6 {[%emt 0:03:09]} 23. Be3 {[%emt 0:02:38]} Bxe3 {[%emt 0:05:31]} 24. Rxe3 {[%emt 0:00:07]} Rd6 {[%emt 0:01:02]} 25. Nf3 {[%emt 0:04:05]} Rg6 {[%emt 0:03:32]} 26. Ne1 {[%emt 0:03:22]} Rd8 {[%emt 0:01:50]} 27. h4 {[%emt 0:02:33]} Ne6 {[%emt 0:06:33]} 28. Nd3 {[%emt 0:01:06]} Nf8 {[%emt 0:02:55]} 29. Bb3 {[%emt 0:03:50]} Nd7 {[%emt 0:01:45]} 30. Rd1 {[%emt 0:05:30]} Rd6 {[%emt 0:00:56]} 31. Bc2 {[%emt 0:03:34]} Nb6 {[%emt 0:01:05]} 32. b3 {[%emt 0:00:53]} R6d7 {[%emt 0:01:18]} 33. Ke2 {[%emt 0:01:15]} f6 {[%emt 0:00:26]} 34. g3 {[%emt 0:03:08]} a5 {[%emt 0:01:01]} 35. Nc5 {[%emt 0:01:05]} Rxd1 {[%emt 0:00:06]} 36. Bxd1 {[%emt 0:00:04]} b4 {[%emt 0:00:26]} 37. Ne6 {[%emt 0:01:50]} Rd7 {[%emt 0:00:24]} 38. Rd3 {[%emt 0:00:37]} Re7 {[%emt 0:01:18]} 39. Nc5 {[%emt 0:00:49]} Kf8 {[%emt 0:00:28]} 40. Ke3 {[%emt 0:02:25]} Ke8 {[%emt 0:00:31]} 41. Bg4 {[%emt 0:31:13]} bxc3 {[%emt 0:04:33]} 42. Rxc3 {[%emt 0:00:00]} Nd4 {[%emt 0:01:05]} 43. Kd3 {[%emt 0:00:00]} g6 {[%emt 0:05:19]} 44. a4 {[%emt 0:00:00]} c6 {[%emt 0:01:11]} 45. f4 {[%emt 0:00:00]} Na8 {[%emt 0:10:00]} 46. fxe5 {[%emt 0:00:00]} fxe5 {[%emt 0:00:01]} 47. Ke3 {[%emt 0:00:00]} h5 {[%emt 0:01:48]} 48. Bh3 {[%emt 0:00:00]} Rg7 {[%emt 0:00:40]} 49. Nd3 {[%emt 0:00:00]} Re7 {[%emt 0:01:25]} 50. Nxe5 {[%emt 0:00:00]} Rxe5 {[%emt 0:04:29]} 51. Kxd4 {[%emt 0:00:00]} Re7 {[%emt 0:00:16]} 52. Rxc6 {[%emt 0:00:00]} Kf7 {[%emt 0:00:54]} 53. Ra6 {[%emt 0:00:00]} Nc7 {[%emt 0:01:08]} 54. Rxa5 {[%emt 0:00:00]} Ne6+ {[%emt 0:00:19]} 55. Bxe6+ {[%emt 0:00:00] normal} 1-0